Workbook

Sheet Sanal
A1: DYS+ MEB E-POSTA+ WHATSAPP-TWİTTER TAKİPLERİ
A2: 1- | B2: Okul WEB Sayfanızı sürekli güncel tutunuz.
A3: 2- | B3: DYS ve meb e-postanızı 09:00, 13:30 ve 17:00 Saatlerinde kontrol ediniz.
A4: 3- | B4: Whatsapta bir kişiye yazacağınız yazıyı grup yerine ismine tıklayarak yazınız.
A5: 4- | B5: Okul Twitter Hesabınızı her akşam gözden geçiriniz.

Sheet DD
A1: ÖĞRENCİ DEVAMSIZLIKLARI
A2: 1- | B2: Öncelikle" Öğrenci Rapor/İzin" adında bir klasörünüz olmaldır.
A3: 2- | B3: Rapor veya izin alan öğrencilerinizi e-okula hemen işleyiniz ve klasöre ekleyiniz. Zamanınız yoksa bir kağıda yazınız müsait olduğunuz ilk zaman diliminde işleyiniz.
A4: 3- | B4: Ders defterlerini son derste toplayarak inceleyiniz. Eksik imza varsa tamamlatınız.
A5: 4- | B5: e-okul-… Kurum İşlemleri-Devamsızlık-Günlük devamsızlık seçiniz.
A6: 5- | B6: Girişlerinizi yapınız. Raporlardan devamsızlık Mektubu taramanızı yapınız. Veli bilgilendirmeleriniz yönetmeliğiniz (İlköğretim veya ortaöğretim) doğrultusunda yapmayı ihmal etmeyiniz.

Sheet DERSDENETİM
A1: Ders Denetim Formu Açıklamalar Dikkate Alınarak Yılda En Az İki Defa Doldurulur. (Açıklamayı okuyun)
A2: T.C. KARABURUN KAYMAKAMLIĞI ...................... ... Müdürlüğü Öğretmen Ders Denetleme Formu
A3: ÖĞRETMENİN KİMLİK VE GÖREV BİLGİLERİ
A4: 1 | B4: Adı Soyadı | C4: :
A5: 2 | B5: T.C. Kimlik No | C5: :
A6: 3 | B6: Meslek Kıdemi | C6: :
A7: 4 | B7: Branşı | C7: :
A8: 5 | B8: Varsa Yöneticilik Görevi | C8: :
A9: 6 | B9: Haftalık Ders Saati Toplamı | C9: :
A10: 7 | B10: Mezuniyet Sonrası Eğitimi | C10: :
A11: DENETİM BİLGİLERİ
A12: 1 | B12: Denetim Tarihi- Saati | C12: :
A13: 2 | B13: Denetlenen Ders- Sınıf-Şube | C13: :
A14: 3 | B14: Denetlenen Dersin Konusu | C14: :
A15: DEĞERLENDİRME KONULARI:
A16: Milli Eğitim Temel Kanunundaki Amaç ve İlkeler ile Okulun ve Dersin Amaçları Doğrultusunda | D16: GELİŞTİRİLMELİ | E16: İYİ | F16: ÇOK İYİ
A17: 1 | B17: Alan, Program ve İçerik Bilgisini Eğitim-Öğretime Yansıtması
A18: 2 | B18: Ünitelendirilmiş Yıllık Planlar ile Günlük/Ders Planları Hazırlama ve Uygulama Başarısı
A19: 3 | B19: Zümre Planları İstenilen Şekilde Hazırlanması, Uygulaması
A20: 4 | B20: Zümre Arkadaşları ile İşbirliği
A21: 5 | B21: Sınıf Hâkimiyeti, Öğrencileri Derse Güdülemesi
A22: 6 | B22: Öğretim Metodu Seçme ve Uygulama Başarısı
A23: 7 | B23: Dersi İşlemede Zamanı Değerlendirme ve Ders Defteri Kullanma Başarısı
A24: 8 | B24: Ders Araç ve Gereçlerini Etkin Olarak Kullanma Başarısı
A25: 9 | B25: Teknolojik Araçları Kullanma Başarısı (Bilgisayar, Projeksiyon, Akıllı Tahta vb.)
A26: 10 | B26: Ünite ve Tema Köşelerinin, İşlenen Konulara Uygun Güncellenmesi
A27: 11 | B27: Öğrenciye Verilen Ödevlerde Yönlendirme Yapması
A28: 12 | B28: Sınıf İçi Etkinliklerde Her Öğrenciye Uygun Fırsatlar Vermesi
A29: 13 | B29: Öğrencilerin Derse İlgisi ve Katılımı, Soru Sorma ve Cevap Vermedeki Cesaret ve Başarıları
A30: 14 | B30: Öğrenci Başarısını Artırmak İçin Aldığı Önlemler
A31: 15 | B31: Sınıf Kitaplığı Oluşturma/Düzenleme/Güncelleme
A32: 16 | B32: Okulun Genel İşleyişine Katkıda Bulunması
A33: 17 | B33: Serbest Zaman Etkinlikleri Planlama/Uygulamama/Dosyalama
A34: 18 | B34: Proje ve Performans Ödevi Verilmesi ve Değerlendirilmesi
A35: 19 | B35: Derslerin İşlenişinde Dikkate Alınacak Hususlara Uyma
A36: 20 | B36: E-Okul Modülünü Kullanma/Öğfrenci Bilgilerini Güncelleme
A37: 21 | B37: Öğrenci Velileri ile Yapılacak İşbirliği Esaslarına Uyma/ Veli Toplantıları Düzenleme
A38: 22 | B38: Genel Durum ve Davranışı, Görev Arkadaşları ve Amirlerine Karşı Tutum ve Davranışı
A39: 23 | B39: Öğrenci Ders Kitaplarını, Çalışma Kitaplarını Amacına Uygun Kullandırması
A40: 24 | B40: Kaynaştırma Öğrenciler İçin BEP Planı Hazırlama ve Uygulama
A41: 25 | B41: Sınav Tarihlerini Önceden Duyurması,
A42: 26 | B42: Cevap Anahtarı Hazırlanıp, Anahtara Uygun Puanlama Yapılması.
A43: 27 | B43: Dynet sistemini uygulatma ve güncelleme (İngilizce ve Sınıf Öğretmenleri)
A44: DÜŞÜNCELER VE AÇIKLAMALAR
B45: Açıklamalar: Yukarıda değerlendirme bölümünde belirtilen 'Geliştirilmeli' bölümündeki maddeler konusunda gerekli
B46: çalışmaların yapılarak, en kısa zamanda tamamlanması ve tamamlandığında okul müdürüne bilgi verilmesi.
E47: ..........................
E48: Okulu Müdürü

Sheet KKÇİZ
A1: ……………………………………………….ANADOLU LİSESİ MÜDÜRLÜĞÜ
A2: BELİRLİ GÜN VE HAFTALAR SORUMLU ÖĞRETMEN ÇİZELGESİDİR
A3: S.NO | B3: KURUL KOMİSYON VEYA EKİP ADI | C3: ÇALIŞMA ALANI | D3: ÇALIŞMA DURUMU
A4: 1
A5: 2
A6: 3
A7: 4
A8: 5
A9: 6
A10: 7
A11: 8
A12: 9

Sheet BGH
A1: ……………………………………………….ANADOLU LİSESİ MÜDÜRLÜĞÜ
A2: BELİRLİ GÜN VE HAFTALAR SORUMLU ÖĞRETMEN ÇİZELGESİDİR
A3: GÜN VEYA HAFTA ADI | B3: GÖREVLİ ÖĞRETMEN
A4: 1. İlköğretim Haftası (Eylül ayının 3. haftası)
A5: 2. Gaziler Günü (19 Eylül)
A6: 1. Hayvanları Koruma Günü (4 Ekim)
A7: 2. Ahilik Kültürü Haftası (8-12 Ekim)
A8: 3. Birleşmiş Milletler Günü (24 Ekim)
A9: 4. Kızılay Haftası (29 Ekim-4 Kasım)
A10: 5. 29 Ekim Cumhuriyet Bayramı (28 Ekim öğleden sonar başlar 29 Ekim akşamı sona erer)
A11: 1. Organ Bağışı ve Nakli Haftası (3-9 Kasım)
A12: 2. Lösemili Çocuklar Haftası (2-8 Kasım)
A13: 3. Atatürk Haftası (10-16 Kasım)
A14: 4. Afet Eğitimi Hazırlık Günü (12 Kasım)
A15: 5. Dünya Felsefe Günü (20 Kasım)
A16: 6. Dünya Çocuk Hakları Günü (20 Kasım)
A17: 7. Öğretmenler Günü (24 Kasım)
A18: 1. Dünya AIDS Günü (1 Aralık)
A19: 2. Mevlana Haftası (2-9 Aralık) (Ek : 17.04.2010/27555 RG)
A20: 3. İnsan Hakları ve Demokrasi Haftası (10 Aralık gününü içine alan hafta)
A21: 4. Tutum, Yatırım ve Türk Malları Haftası (12-18 Aralık)
A22: Enerji Tasarrufu Haftası (Ocak ayının 2. haftası)
A23: 1. Sivil Savunma Günü (28 Şubat)
A24: 2. Vergi Haftası (Şubat ayının son haftası)
A25: 1. Yeşilay Haftası (1Mart gününü içine alan hafta)
A26: 2. Girişimcilik Haftası (Mart ayının ilk haftası)
A27: 3. Dünya Kadınlar Günü (8 Mart)
A28: 4. Bilim ve Teknoloji Haftası (8-14 Mart)
A29: 5. İstiklâl Marşı’nın Kabulü ve Mehmet Akif Ersoy’u Anma Günü (12 Mart)
A30: 6. Tüketiciyi Koruma Haftası(15-21 Mart)
A31: 7. Şehitler Günü (18 Mart)
A32: 8. Yaşlılar Haftası (18-24 Mart)
A33: 9. Türk Dünyası ve Toplulukları Haftası (21 Mart Nevruz gününü içine alan hafta)
A34: 10. Orman Haftası (21-26 Mart)
A35: 11. Dünya Tiyatrolar Günü (27 Mart)
A36: 12. Kütüphaneler Haftası (Mart ayının son pazartesi gününü içine alan hafta)
A37: 1. Turizm Haftası (15-22 Nisan)
A38: 2. Dünya Kitap Günü ve Kütüphaneler Haftası (23 Nisan gününü içine alan hafta)
A39: 3. 23 Nisan Ulusal Egemenlik ve Çocuk Bayramı
A40: 1. Yunus Emre Haftası (Mayıs ayının ilk haftası)” ) (Ek : 17.04.2010/27555 RG)
A41: 2. Bilişim Haftası (Mayıs ayının ilk haftası)
A42: 3. Trafik ve İlkyardım Haftası (Mayıs ayının ilk haftası)
A43: 4. Vakıflar Haftası (Mayıs ayının 2. haftası)
A44: 5. Anneler Günü (Mayıs ayının 2 inci Pazarı)
A45: 6. Engelliler Haftası (10-16 Mayıs)
A46: 7. Müzeler Haftası (18-24 Mayıs)
A47: 8. Etik Günü (25 Mayıs)
A48: 9. 19 Mayıs Atatürkü Anma Gençlik ve Spor Bayramı
A49: 1. Çevre Koruma Haftası (Haziran ayının 2. haftası)
A50: 2. Babalar Günü (Haziran ayının 3 üncü pazarı)
A51: Açıklama : Görevlendirmeler alfabetik isim sırasına göre yapılmıştır. Her öğretmenimiz, etkinliğini planlayıp idareci ve öğretmenler işbirliği ile yapılmasını sağlayarak ve etkinlik görüntü ve raporlarını idareye sunacaktır.
A52: =TODAY() -> 2019-03-15
A54: M.MAHSUM GÜLTEKİN
A55: Okul Müdürü

Sheet KUR.KOM.
A1: KURUL VE KOMİSYONLAR
A2: 1- | B2: Öncelikle" KURL VE KOMİSYONLAR" adında bir gerçek bir sanal klasörünüz olmaldır.
A3: 2- | B3: Sizde hangi kurul, komisyon ya da ekip varsa aşağıdaki gibi bir çizelgede belirtiniz.
A4: 3- | B4: Tüm çalışmalarınızı düzenli takip ediniz.
A5: 4- | B5: Gerekli formları arşivleyiniz.
B7: ÖRNEK ÇİZELGE İÇİN TIKLAYINIZ

Sheet PROJE
A1: KADROLU EKDERS
A2: 1- | B2: Öncelikle" PROJELER" adında bir gerçek bir sanal klasörünüz olmaldır.
A3: 2- | B3: Tüm çalışmalarınızı düzenli arşivleyiniz.
A4: 3- | B4: Tüm projelerinzin yasal dayanağı olmaldır. Kendiize aitse mutlaka OLUR alınız.
A5: 4- | B5: Her proje için gçrevlendirmeleri yapınız ve düzenli aralıklarla takip ediniz.
A6: 5- | B6: Raporlamalarınız aylık olarak yapınız ve dosyalayınız. İstenmemişse göndermeyiniz.

Sheet YEMEK
A1: 2018-2019 EĞİTİM-ÖĞRETİM YILI TAŞIMALI ORTAÖĞRETİM TAŞIMA UYGULAMASI AYLIK BİLDİRİM CETVELİ
A3: TAŞIMALI EĞİTİM UYGULANAN MERKEZ OKULUN ADI: KARABURUN ANADOLU İMAM HATİP LİSESİ
A7: MERKEZ OKULA TAŞINAN YERLEŞİM BİRİMİ: Hasseki-Yeni Liman-Karaburun-Kösedere-Eğlenhoca- Eski Mordoğan Köyü-Okul
A11: 1 | B11: 2 | C11: 3 | D11: 4 | E11: 5 | F11: 6 | G11: 7 | H11: 8 | I11: 9 | J11: 10 | K11: 11 | L11: 12 | M11: 13 | N11: 14 | O11: 15 | P11: 16 | Q11: 17 | R11: 18 | S11: 19 | T11: 20 | U11: 21 | V11: 22 | W11: 23 | X11: 24 | Y11: 25 | Z11: 26 | AA11: 27 | AB11: 28 | AC11: 29 | AD11: 30 | AE11: 31 | AF11: TOPLAM GÜN SAYISI | AI11: AİT OLDUĞU AY
A12: - | B12: x | C12: x | D12: x | E12: - | F12: - | G12: X | H12: X | I12: X | J12: X | K12: X | L12: - | M12: - | N12: X | O12: X | P12: X | Q12: X | R12: - | S12: - | T12: - | U12: - | V12: - | W12: - | X12: - | Y12: - | Z12: - | AA12: - | AB12: - | AC12: - | AD12: - | AE12: - | AF12: Oniki ( 12) İş Günü | AI12: 2019-01-01
D14: AÇIKLAMALAR | L14: : | M14: (X ) | O14: YEMEĞİN VERİLDİĞİ GÜNLER
M15: (---) | O15: YEMEĞİN VERİLMEDİĞİ GÜNLER
A22: YÜKLENİCİNİN ADI -SOYADI | M22: : | N22: Mordoğan Pide -Yaşar Gürgey
A24: YÜKLENİCİNİN İMZASI | M24: : | AH24: ONAYLAYAN
AH25: =TODAY() -> 2019-03-15
C26: DÜZENLEYEN
C27: Mehmet MİNTAŞ | AH27: M.Mahsum GÜLTEKİN
C28: Müdür Yardımcısı | AH28: Okul Müdürü

Sheet taşımalı
A1: 2018-2019 EĞİTİM-ÖĞRETİM YILI TAŞIMALI ORTAÖĞRETİM UYGULAMASI AYLIK BİLDİRİM CETVELİ
A3: TAŞIMALI EĞİTİM UYGULANAN MERKEZ OKULUN ADI: KARABURUN ANADOLU İMAM HATİP LİSESİ
A7: MERKEZ OKULA TAŞINAN GÜZERGAHLAR: Hasseki-Yeni Liman-Karaburun-Kösedere-Eğlenhoca- Eski Mordoğan Köyü-Okul
A11: 1 | B11: 2 | C11: 3 | D11: 4 | E11: 5 | F11: 6 | G11: 7 | H11: 8 | I11: 9 | J11: 10 | K11: 11 | L11: 12 | M11: 13 | N11: 14 | O11: 15 | P11: 16 | Q11: 17 | R11: 18 | S11: 19 | T11: 20 | U11: 21 | V11: 22 | W11: 23 | X11: 24 | Y11: 25 | Z11: 26 | AA11: 27 | AB11: 28 | AC11: 29 | AD11: 30 | AE11: 31 | AF11: TOPLAM GÜN SAYISI | AI11: AİT OLDUĞU AY
A12: - | B12: x | C12: x | D12: x | E12: - | F12: - | G12: X | H12: X | I12: X | J12: X | K12: X | L12: - | M12: - | N12: X | O12: X | P12: X | Q12: X | R12: X | S12: - | T12: - | U12: - | V12: - | W12: - | X12: - | Y12: - | Z12: - | AA12: - | AB12: - | AC12: - | AD12: - | AE12: - | AF12: Onüç ( 13) İş Günü | AI12: 2019-01-01
D14: AÇIKLAMALAR | L14: : | M14: (X ) | O14: TAŞIMANIN YAPILDIĞI GÜNLER
M15: (---) | O15: TAŞIMANIN YAPILMADIĞI GÜNLER
A22: YÜKLENİCİNİN ADI -SOYADI | M22: : | N22: S.S. ÖZKARABURUNLULAR MOT. TAŞ. KOOP.
AH23: ONAYLAYAN
C24: DÜZENLEYEN
C25: Mehmet MİNTAŞ | AH25: M.Mahsum GÜLTEKİN
C26: Müdür Yardımcısı | AH26: Okul Müdürü

Sheet GÜVENLİK
E1: TÜRKİYE İŞ KURUMU GENEL MÜDÜRLÜĞÜ
E2: İZMİR ÇALIŞMA VE İŞ KURUMU İL MÜDÜRLÜĞÜ
A4: EK-3:Toplum Yararına Program Katılımcı Devam Çizelgesi
A5: 2 Kişilik
A6: Bu çizelge İŞKUR’ a gönderilmeyecektir. Yüklenici, her katılımcıya devam ettikleri her gün için bu Çizelgeyi imzalatmak, muhafaza etmek ve ihtiyaç halinde yetkili kişi ve makamlara ibraz etmekle yükümlüdür.
A9: Ait Olduğu Yıl | C9: 2018 | I9: Ait Olduğu Ay | K9: EKİM
A10: TYP No | C10: 255595 | I10: TYP Konusu | K10: ÖZEL GÜVENLİK
A11: TYP Başlama Tarihi | C11: 2018-10-15 | I11: TYP Bitiş Tarihi
A12: YUKLENİCİ ADI : Karaburun Anadolu İmam Hatip Lisesi | I12: Yüklenici Yetkilisi Ad, Soyad : M.Mahsum GÜLTEKİN Okul Müdürü
A13: Ad Soyad: | B13: Mustafa TUNÇ | I13: Ad Soyad:
A16: TC Kimlik No: | B16: 42742503838 | I16: TC Kimlik No:
A17: Gün | B17: Sabah | E17: Akşam | I17: Sabah | L17: Akşam
A18: 1 | B18: Göreve Başlama 15/10/2018
A19: 2
A20: 3
A21: 4
A22: 5
A23: 6
A24: 7
A25: 8
A26: 9
A27: 10
A28: 11
A29: 12
A30: 13
A31: 14
A32: 15
A33: 16
A34: 17
A35: 18
A36: 19
A37: 20 | B37: Tatil | E37: Tatil
A38: 21 | B38: Tatil | E38: Tatil
A39: 22
A40: 23
A41: 24
A42: 25
A43: 26
A44: 27 | B44: Tatil | E44: Tatil
A45: 28 | B45: Tatil | E45: Tatil
A46: 29
A47: 30
A48: 31

Sheet T.İŞÇİ
A1: T.C.
A2: İZMİR VALİLİĞİ | AI2: Sayfa : 1/ 1
A3: Karaburun Anadolu İmam Hatip Lisesi Müdürlüğü | E3: 15-31 Aralık 2018 Karaburun Anadolu İmam Hatip Lisesi Müdürlüğü
E4: ÇALIŞAN İŞÇİLERE AİT PUANTAJ CETVELİDİR
A5: SIRA NO | B5: ADI / SOYADI | C5: POZİSYON | D5: YEVMİYE TL | E5: Aralık | AI5: ÇALIŞILAN GÜN | AJ5: ÇALIŞILMAYAN GÜN | AK5: FİİLİ GÜN | AL5: ÜCRETLİ İZİN | AM5: RAPOR
E6: 2018-12-15 | F6: =E6+1 -> 2018-12-16 | G6: =F6+1 -> 2018-12-17 | H6: 2018-12-18 | I6: 2018-12-19 | J6: 2018-12-20 | K6: 2018-12-21 | L6: 2018-12-22 | M6: 2018-12-23 | N6: 2018-12-24 | O6: 2018-12-25 | P6: 2018-12-26 | Q6: 2018-12-27 | R6: =Q6+1 -> 2018-12-28 | S6: =R6+1 -> 2018-12-29 | T6: 2018-12-30 | U6: =T6+1 -> 2018-12-31
A8: 1 | B8: Halise ELMAS | C8: GEÇİCİ İŞÇİ | D8: 0 | G8: X | H8: X | I8: X | J8: X | K8: X | N8: X | O8: X | P8: X | Q8: X | R8: X | U8: x | AI8: 11 | AJ8: 0 | AK8: 11 | AL8: 0 | AM8: 0
A9: 2
A10: 3
A13: (X) | B13: Çalışılan Günler | AI13: Doğruluğu Tasdik Olunur. Ünite Amiri
A14: (O) | B14: Çalışılmayan Günler
A15: (R) | B15: Raporlu Günler
A16: (İZ) | B16: İzinli Günler | G16: Hazırlayan | AI16: Onaylayan
A17: (S.İ.) | B17: Sendika İzni | F17: Mehmet MİNTAŞ | AI17: M.Mahsum GÜLTEKİN
F18: Müdür Yardımcısı | AI18: Okul Müdürü

Sheet TEMİZLİK
E1: TÜRKİYE İŞ KURUMU GENEL MÜDÜRLÜĞÜ
E2: İZMİR ÇALIŞMA VE İŞ KURUMU İL MÜDÜRLÜĞÜ
A4: EK-3:Toplum Yararına Program Katılımcı Devam Çizelgesi
A5: 2 Kişilik
A6: Bu çizelge İŞKUR’ a gönderilmeyecektir. Yüklenici, her katılımcıya devam ettikleri her gün için bu Çizelgeyi imzalatmak, muhafaza etmek ve ihtiyaç halinde yetkili kişi ve makamlara ibraz etmekle yükümlüdür.
A9: Ait Olduğu Yıl | C9: 2018 | I9: Ait Olduğu Ay | K9: EKİM
A10: TYP No | C10: 255595 | I10: TYP Konusu | K10: TEMİZLİK
A11: TYP Başlama Tarihi | C11: 2018-10-08 | I11: TYP Bitiş Tarihi
A12: YUKLENİCİ ADI : Karaburun Anadolu İmam Hatip Lisesi | I12: Yüklenici Yetkilisi Ad, Soyad : M.Mahsum GÜLTEKİN Okul Müdürü
A13: Ad Soyad: | B13: Güllü EROĞUL | I13: Ad Soyad: | J13: Tuğba BASKIN
A16: TC Kimlik No: | B16: …………. | I16: TC Kimlik No: | J16: ……………………
A17: Gün | B17: Sabah | E17: Akşam | I17: Sabah | L17: Akşam
A18: 1 | B18: Göreve Başlama 08/10/2018 | I18: Göreve Başlama 08/10/2018
A19: 2
A20: 3
A21: 4
A22: 5
A23: 6
A24: 7
A25: 8
A26: 9
A27: 10
A28: 11
A29: 12
A30: 13 | B30: Tatil | E30: Tatil | I30: Tatil | L30: Tatil
A31: 14 | B31: Tatil | E31: Tatil | I31: Tatil | L31: Tatil
A32: 15
A33: 16
A34: 17
A35: 18
A36: 19
A37: 20 | B37: Tatil | E37: Tatil | I37: Tatil | L37: Tatil
A38: 21 | B38: Tatil | E38: Tatil | I38: Tatil | L38: Tatil
A39: 22
A40: 23
A41: 24
A42: 25
A43: 26
A44: 27 | B44: Tatil | E44: Tatil | I44: Tatil | L44: Tatil
A45: 28 | B45: Tatil | E45: Tatil | I45: Tatil | L45: Tatil
A46: 29
A47: 30
A48: 31

Sheet K.EKDERS
A1: KADROLU EKDERS
A2: 1- | B2: Ekders Programından Takvimi güncelleyiniz. Puntajı doldurunuz. Ve puantaj sayfasını yenileyiniz. Çıktı alınız.
A3: 2- | B3: Ana Sayfaya dönüp KBS dosyası oluştur butonuna tıklayınız.
A4: 3- | B4: KBS Dosyası "Yıl-Ay" formatında güncel isimle hazırlanacak ve dosyanızın bulunduğu klasöre kayıt edilecektir.
A5: 4- | B5: KBS yi açınız. Ekders hesaplamada hesaplama seçiniz. Aşağıda Aynı Banka kısmına tıklayıp seç deyiniz.
A6: 5- | B6: Dosya yüklede yönergeleri takip edip dosyanızı göstererek yükle deyiniz. Kayıt butonuna basınız.
A7: 6- | B7: F5 ile sayfayı yenileyiniz. Kesinti ve sınav görevi varsa yapınız. Ardından onaylayıp raporlara geçiniz.
A8: 7- | B8: İcmal,Bordro, Banka Listesi çıktılarını alınız. (Sayfalar dikey gelir yatay yaparak yazdırınız.)
A9: 8- Çıktıları Kaşe-İmza- mühür den sonra üst yazıyla İlçenize gönderiniz.
A10: * | B10: Başka okuldan gelen öğretmenlerinizin de puantajlarını doldurup okullarına göndermeyi unutmayınız.

Sheet ÜP
A1: KARABURUN ANADOLU İMAM HATİP LİSESİ MÜDÜRLÜĞÜ
A2: ÜCRETLİ ÖĞRETMEN EKDERS ÇİZELGESİ
A3: Okulun Adı | C3: KARABURUN ANADOLU İMAM HATİP LİSESİ
A4: Başlangıç Tarihi | C4: 2019-01-01
A5: Bitiş Tarihi | C5: 2019-01-14
A7: SIRA NO | B7: TCKN | C7: ADI ve SOYADI | D7: UNVAN | E7: 15 | F7: 16 | G7: 17 | H7: 18 | I7: 19 | J7: 20 | K7: 21 | L7: 22 | M7: 23 | N7: 24 | O7: 25 | P7: 26 | Q7: 27 | R7: 28 | S7: 29 | T7: 30 | U7: 31 | V7: 1 | W7: 2 | X7: 3 | Y7: 4 | Z7: 5 | AA7: 6 | AB7: 7 | AC7: 8 | AD7: 9 | AE7: 10 | AF7: 11 | AG7: 12 | AH7: 13 | AI7: 14 | AJ7: Toplam Saat
A8: 1 | B8: 26645214954 | C8: Gülhan KUŞGİL | D8: Ücretli Öğretmen | W8: 3 | X8: 7 | Y8: 8 | AB8: 8 | AC8: 4 | AD8: 3 | AE8: 7 | AF8: 8 | AI8: 8 | AJ8: =SUM(E8:AI8) -> 56
AJ10: =SUM(AJ8:AJ9) -> 56
B11: NOT: | C11: Yukarıda belirtilen görevlerde | E11: 01 Ocak-14 Ocak | J11: tarihleri arasında | N11: =SUM(AJ8:AJ9) -> 56 | P11: saat ders okutulmuştur
B16: DÜZENLEYEN
AB17: UYGUNDUR
B18: Mehmet MİNTAŞ
B19: Müdür Yardımcısı | AB19: M.Mahsum GÜLTEKİN
AB20: Okul Müdürü

Sheet BRD
A1: KARABURUN ANADOLU İMAM HATİP LİSESİ MÜDÜRLÜĞÜ
A3: OKUL / KURUM | I3: KATSAYI | J3: ÇEŞİTLİ ÖDEMELER BORDROSU | U3: AİT OLDUĞU AY | W3: =ÜP!E11 -> 01 Ocak-14 Ocak
A4: KARABURUN ANADOLU İMAM HATİP LİSESİ MÜDÜRLÜĞÜ | I4: 0.13056 | U4: AİT OLDUĞU YIL | W4: 2018
A5: SIRA NO | B5: T:C: | C5: GÖREVİ | D5: ADI SOYADI | E5: TOP GÜN | F5: GÜN GECE | G5: SAAT ÜCRETİ | H5: TOPLAM SAAT | I5: BRÜT ÜCRET | J5: %20,5 SSK DV.PAYI | K5: %24,5 SSK DV.PAYI | L5: AYLIK VRG. MTRH. | M5: TAHAKKUK TOPLAMI | N5: YILLIK VERGİ MATRAHI TOPLAMI | O5: GELİR VRGS. (AGİ) | P5: DAMGA VERGİSİ | Q5: % 20,5 SSK DV.PAYI | R5: % 14 SSK İŞÇİ PAYI | S5: % 24,5 SSK DEV. PAYI | T5: % 7,5 SSK İŞÇİ PAYI | U5: KESİNTİ TOPLAMI | V5: ELE GEÇEN NET TUTAR | W5: AÇIKLAMALAR
A6: SIRA | C6: GÖREVİ | D6: ADI | E6: TOP.GÜN | H6: SAAT | I6: BRÜT | J6: % 19,5 SSK | K6: % 19,5 SSK | L6: AYLIK VRG. | M6: TAHAKKUK | N6: TAHAKKUK | O6: GELİR VRGS. | Q6: %22,5 SSK | R6: %22,5 SSK | S6: %22,5 SSK | T6: %22,5 SSK | U6: KESİNTİ | V6: NET
A9: 1 | B9: =ÜP!B8 -> 26645214954 | C9: Üc. Türkçe Öğretmeni | D9: =ÜP!C8 -> Gülhan KUŞGİL | E9: 8 | F9: 140 | G9: =I4*F9 -> 18.2784 | H9: =ÜP!AJ8 -> 56 | I9: =ROUND(H9*G9,2) -> 1023.59 | J9: =ROUND(I9*20.5/100,2) -> 209.84 | K9: =SUM(K7:K7) -> 0 | L9: =I9-R9-T9 -> 880.29 | M9: =I9+J9+K9 -> 1233.43 | N9: 0 | O9: =ROUND(L9*15/100,2) -> 132.04 | P9: =(I9*0.759)/100 -> 7.7690481 | Q9: =J9 -> 209.84 | R9: =ROUND(I9*14/100,2) -> 143.3 | S9: =K9 -> 0 | T9: =ROUND(S9/22.5*7.5,2) -> 0 | U9: =O9+P9+Q9+R9+S9+T9 -> 492.9490481 | V9: =M9-U9 -> 740.4809519 | W9: =W3 -> 01 Ocak-14 Ocak
A10: 2
A11: T O P L A M | E11: =SUM(E9:E10) -> 8 | F11: =SUM(F9:F10) -> 140 | G11: =SUM(G9:G10) -> 18.2784 | H11: =SUM(H9:H10) -> 56 | I11: =SUM(I9:I10) -> 1023.59 | J11: =ROUND(I11*20.5/100,2) -> 209.84 | K11: =SUM(K10:K10) -> 0 | L11: =I11-R11-T11 -> 880.29 | M11: =I11+J11+K11 -> 1233.43 | N11: =SUM(N10:N10) -> 0 | O11: =ROUND(L11*15/100,2) -> 132.04 | P11: =SUM(P9:P10) -> 7.7690481 | Q11: =J11 -> 209.84 | R11: =R9 -> 143.3 | S11: =K11 -> 0 | T11: =ROUND(S11/22.5*7.5,2) -> 0 | U11: =O11+P11+Q11+R11+S11+T11 -> 492.9490481 | V11: =M11-U11 -> 740.4809519
A13: =A4 -> KARABURUN ANADOLU İMAM HATİP LİSESİ MÜDÜRLÜĞÜ | E13: ÇALIŞANLARI ADINA | H13: =W3 -> 01 Ocak-14 Ocak | K13: AYINA AİT TOPLAM | N13: =M11 -> 1233.43 | O13: TL TAHAKKUK ETMİŞTİR. | S13: DÜZENLEYEN | U13: =TODAY() -> 2019-03-15 | W13: GERÇEKLEŞTİRME GÖREVLİSİ
R14: ADI SOYADI | S14: =ÜP!B18 -> Mehmet MİNTAŞ | W14: =ÜP!AB17 -> UYGUNDUR
R15: ÜNVANI | S15: =ÜP!B19 -> Müdür Yardımcısı | W15: =ÜP!AB19 -> M.Mahsum GÜLTEKİN
R16: İMZASI | W16: =ÜP!AB20 -> Okul Müdürü
A20: =ASG.GEÇ.BORD.!D4/(12*30) -> 85.26666667
J27: 1

Sheet ASG.GEÇ.BORD.
A1: ASGARİ GEÇİM İNDİRİMİNE AİT BORDRO
A2: Muhasebe Birimi Kodu / Adı | D2: 35107 Karaburun Malmüdürlüğü
A3: Kurum Kodu / Adı | D3: 13.1.33.62 Milli Eğitim Bakanlığı | G3: Birim Kodu / Adı : | I3: 851 | J3: Karaburun Anadolu İmam Hatip Lisesi Müdürlüğü
A4: Asgari Ücretin Yıllık Brüt Tutarı | D4: =2558*12 -> 30696
B5: Sıra No | C5: Sicil No | D5: Adı Soyadı | E5: 01 OCAK 14 OCAK | G5: 15 OCAK 14 ŞUBAT | I5: 15 ŞUBAT 14 MART | K5: 15 MART 14 NİSAN | M5: 15 NİSAN 14 MAYIS | O5: 15 MAYIS 14 HAZİRAN | Q5: 15 HAZİRAN 14 TEMMUZ | S5: 15 TEMMUZ 14 AĞUSTOS | U5: 15 AĞUSTOS 30 AĞUSTOS | W5: 15 EYLÜL 14 EKİM | Y5: 15 EKİM 14 KASIM | AA5: 15 KASIM 14 ARALIK | AC5: 15 ARALIK 31 ARALIK
E6: Oran | F6: Tutar | G6: Oran | H6: Tutar | I6: Oran | J6: Tutar | K6: Oran | L6: Tutar | M6: Oran | N6: Tutar | O6: Oran | P6: Tutar | Q6: Oran | R6: Tutar | S6: Oran | T6: Tutar | U6: Oran | V6: Tutar | W6: Oran | X6: Tutar | Y6: Oran | Z6: Tutar | AA6: Oran | AB6: Tutar | AC6: Oran | AD6: Tutar
B7: 1 | C7: =BRD!B9 -> 26645214954 | D7: =BRD!D9 -> Gülhan KUŞGİL | E7: 50 | F7: =191.85/2 -> 95.925 | W7: 50 | X7: 152.21 | Y7: 50 | Z7: 152.21 | AA7: 50 | AB7: 152.21 | AC7: 50 | AD7: =AB7/2 -> 76.105
B8: TOPLAM | X8: =X7 -> 152.21 | Z8: 152.21 | AB8: =AB7 -> 152.21
B10: =J3 -> Karaburun Anadolu İmam Hatip Lisesi Müdürlüğü | E10: ÇALIŞANLARI ADINA | H10: =BRD!H13 -> 01 Ocak-14 Ocak | K10: AYINA AİT TOPLAM | N10: =Z8 -> 152.21 | O10: TL TAHAKKUK ETMİŞTİR. | U10: DÜZENLEYEN | X10: =TODAY() -> 2019-03-15 | AA10: GERÇEKLEŞTİRME GÖREVLİSİ
S11: ADI SOYADI | U11: =BRD!S14 -> Mehmet MİNTAŞ | AA11: =BRD!W14 -> UYGUNDUR
S12: ÜNVANI | U12: =BRD!S15 -> Müdür Yardımcısı
S13: İMZASI | AA13: =ÜP!AB19 -> M.Mahsum GÜLTEKİN
AA14: =ÜP!AB20 -> Okul Müdürü

Sheet ANA
B2: İZMİR/KARABURUN ANADOLU İMAM HATİP LİSESİ MÜDÜRÜĞÜ
B3: PERİYODİK İŞLER TAKİBİ YÖNETİCİ PROGRAMI
B4: SIRA NO | C4: İŞ ADI | D4: TAKİP SÜRECİ | E4: İŞ YAPIMI
B5: 1 | C5: MAAŞ GÜNCELLEME | D5: Her Ayın sonuna Kadar | E5: Nasıl Yapılır-Tıklayınız
B6: 2 | C6: EK DERSLER (KADROLU+ DIŞ PERSONEL) | D6: Her Ayın sonuna Kadar | E6: Nasıl Yapılır-Tıklayınız
B7: 3 | C7: TYP İŞKUR PUANTAJLARI | D7: Her Ayın sonuna Kadar | E7: Nasıl Yapılır-Tıklayınız
B8: 4 | C8: TAŞERON İŞÇİ PUANTAJI | D8: Her Ayın sonuna Kadar | E8: Nasıl Yapılır-Tıklayınız
B9: 5 | C9: GÜVENLİKÇİ PUANTAJI | D9: Her Ayın sonuna Kadar | E9: Nasıl Yapılır-Tıklayınız
B10: 6 | C10: TAŞIMALI EĞİTİM SERVİS PUANTAJI | D10: Her Ayın sonuna Kadar | E10: Nasıl Yapılır-Tıklayınız
B11: 7 | C11: TAŞIMALI EĞİTİM YEMEK PUANTAJI | D11: Her Ayın sonuna Kadar | E11: Nasıl Yapılır-Tıklayınız
B12: 8 | C12: PROJE RAPORLAMALARI (Sıfır Atık.KTS, MÖP vs.) | D12: Her Ayın sonuna Kadar | E12: Nasıl Yapılır-Tıklayınız
B13: 9 | C13: ÜCRETLİ ÖĞRETMEN ÖDEMESİ | D13: Ayın 1-15 Arası | E13: Nasıl Yapılır-Tıklayınız
B14: 10 | C14: BELİRLİ GÜN VE HAFTALAR TAKİBİ | D14: Ayın 1-15 Arası | E14: Nasıl Yapılır-Tıklayınız
B15: 11 | C15: KURUL VE KOMİSYON ÇALIŞMA TAKİPLERİ | D15: Ayın 1-15 Arası | E15: Nasıl Yapılır-Tıklayınız
B16: 12 | C16: DERS DENETİMLERİ | D16: Ayın 1-15 Arası | E16: Nasıl Yapılır-Tıklayınız
B17: 13 | C17: ÖĞRENCİ DEVAMSIZLIK TAKİBİ | D17: Her Gün (Ders Bitimi) | E17: Nasıl Yapılır-Tıklayınız
B18: 14 | C18: DYS+ MEB E-POSTA+ WHATSAPP-TWİTTER | D18: Hergün (Arada kontrol) | E18: Nasıl Yapılır-Tıklayınız

Sheet MAAŞ
B2: KURUMU | C2: KARABURUN İLÇE MİLLİ EĞİTİM MÜDÜRLÜĞÜ | G2: DÖNEMİ | H2: 2018- | I2: EKİM
B3: BİRİMİ | C3: KARABURUN ANADOLU İMAM HATİP LİSESİ
A4: S.N | B4: MALİYE KİŞİ NO | C4: T.C KİMLİK NO | D4: ADI SOYADI | E4: ÜNVANI | F4: UNVAN KODU | G4: DEĞİŞİKLİK TÜRÜ | H4: GÖREVDEN AYRILMA | I4: GÖREVE BAŞLAMA | J4: BU D/K HAK ETTİĞİ TARİH | K4: KADRO DER. | L4: AYLIK DER. | M4: EK GÖSTERGE | N4: YAN ÖDEME | O4: UZMANLIK | P4: ÖZEL HİZMETTAZMİNAT ORANI | Q4: İCRA DOSYA NO | R4: KESİLECEK MİKTAR | S4: MALİYEDEKİ DEFTER SAYFA NO
A5: 1
A6: 2
A7: 3
A8: 4
A9: 5
A10: 6
A11: 7
A12: 8
A13: 9
A14: 10
A15: 11
A16: 12
A17: 13
A18: Açıklama : Ay sonunda öğretmen başlaması, ayrılması, 7 gün den fazla rapor, derece, kademe veya terfi gibi maaşı etkileyen tüm etkenleri bu forma doldurarak Belgeleri ile birlikte İlçe MEM Destek Bölümüne Gönderiniz.
B19: Yukarıda beyan edilen bilgilerin eksiksiz ve doğru olduğunu tastik ederim. | I19: =TODAY() -> 2019-03-15
C21: Düzenleyen | I21: Kayıtlarımıza Uygundur.
C22: Mehmet MİNTAŞ
C23: Müdür Yardımcısı | I23: M.MAHSUM GÜLTEKİN
I24: Okul Müdürü

Sheet ÜCRETLİ
A1: SGK GİRİŞİ
A2: 1- | B2: e-devlet ya da şifrenizle SGK e-bildirgeye giriniz ve Asıl Prim Ödemeleri tıklanız
A3: 2- | B3: Kutucuktan 13 Seçiniz ve bir önceki aydan bilgi getir tiki atınız.
A4: 3- | B4: Gelen listeden öğretmeninizi seçerek PEK tutarı kısmına Bordrodan Brüt Ücret Tutarını giriniz.
A5: 4- | B5: Gün sayısı için Toplam Ek Ders saatini 7,5 e bölünüz virgülden sonra 0 hariç ne varsa üste tamamlayınız. Örnek: 8,0001=9 Olacak.
A6: 5- | B6: Eksik gün ayın gün sayısına göre kalan gündür. Eksik Gün Nedeni 07- Puantaj Kayıtları Seçiniz
A7: 6- | B7: Onay Ekranına Geçiniz. Bu ekrandaki Prim Tutarı Bordronuzdaki İşçi Payı+Devlet Payı toplamına eşit olmalıdır.
B8: a) Eşitse anamenü- Onaylanmış Prim… Tahakkuk Fişi ve Hizmet Listesi 3 er nüsha Yazdırınız. Kaşe-Mühür-İmza Yapınız.
B9: b) Değilse işlemlerinizi tekrar gözden geçiriniz. Yalnızca 0,01 Tl Fark çıkabilir. Bordrodaki Devlet veya İşçi Paylarından denkleştirme yapınız. Kuruş farkı olmamalıdır.
A11: MYS ÖDEMESİ
A12: Gerçekleştirme Görevlisi Olarak giriş yapınız. Rol seçip Harcamalar tıklayınız.
A13: 1- | B13: Yeni Harcama kısmına Giriniz. Ve Gelen Formu doldurarak kayıt ediniz.
A14: 2- | B14: Yeni açıklama Ekle butonunu çalıştırıp doldurunuz ve ekle deyiniz.Ön Ödeme Yok kısmını unutmayınız.
A15: 3- | B15: Kaydet basınız ve aşağıda ilerle giriniz.
A16: 4- | B16: Gelen Formda harcama türüne (HAZİNE ÜZERİNDEN YURTİÇİ HESABA) İşaretleyiniz ve yine Kaydet- İlerle yapınız.
A17: 5- | B17: Gelen ekranda ödemenizin rakamlarına ve ardından "ödeme emri oluştur" a tıklayınız..
A18: 6- | B18: Hak Sahibi Ekle Seçip TC Giriniz İBAN Seçiniz. Yoksa küçük kalem resmine tıklayıp İBAN tanımlayınız.
A19: 7- | B19: Detay Ekle-Ödeme Kalemi Ekle iki tane yapınız.
A20: 8- | B20: İlk Kalemi "Ders Görevi Karşılığında Görevlendirilenlerin.. " seçip Bordrodaki Brüt Ücreti satırdaki son bölüme giriniz.
A21: 9- | B21: İkinci Kalem SGK seçip Sosyal Güvenlik Prim … seçiniz ve Bordrodaki devlet payını giriniz.
A22: 10- | B22: Detay Ekle den 4 Adet Kesinti tıklayınız
B23: 1- Vergi (Damga vergisi) 2- Vergi (Gelir Vergisi) 3- SGK :Malulluk Yaşlılık… (İşveren-İşçi) ; Bordrodan Devlet Payı 4- SGK : Malulluk İyaşçılık (İştirakçi- İşçi) ; İşçi Payı Giriniz)
A24: 11- | B24: Diğer Detay Ekle Seçiniz İdirim-Ücretlerde Vergi İndirimi ve son kısma AGİ( Asgari Geçim İndirimi) giriniz.
B25: Kaydet İlerle-ilerle Onaya Gönder -Bitti
A26: 13 - | B26: Müdür (Harcama Yetkilisi) olarak giriniz, Elektronik İmzasız Onayla-Muhasebeye Gönder ve 3 nüsha Çıktı -mühür-imzalar işlem tamamdır.
A28: ******SGK Prim çizelgeleri ve Ödeme Emri belgesi ikişer nüsha bordro,AGİ ve puantaj birer nüsha paketleyip Malmüdürlğüne birer nüsha okula arşiv.

Sheet EkDers
J1: TEK HAFTALIK ÜCRET TABLOSU | R1: 2019-01-01 | S1: 2019-01-02 | T1: 2019-01-03 | U1: 2019-01-04 | V1: 2019-01-05 | W1: 2019-01-06 | X1: 2019-01-07 | Y1: 2019-01-08 | Z1: 2019-01-09 | AA1: 2019-01-10 | AB1: 2019-01-11 | AC1: 2019-01-12 | AD1: 2019-01-13 | AE1: 2019-01-14 | AF1: 2019-01-15 | AG1: 2019-01-16 | AH1: 2019-01-17 | AI1: 2019-01-18 | AJ1: 2019-01-19 | AK1: 2019-01-20 | AL1: 2019-01-21 | AM1: 2019-01-22 | AN1: 2019-01-23 | AO1: 2019-01-24 | AP1: 2019-01-25 | AQ1: 2019-01-26 | AR1: 2019-01-27 | AS1: 2019-01-28 | AT1: 2019-01-29 | AU1: 2019-01-30 | AV1: 2019-01-31 | AW1: GENEL
A2: S.N. | B2: Aktif | C2: Saymanlık Numarası | D2: Adı ve Soyadı | E2: Görevi | F2: TCKN | H2: Veri Tip | I2: Veri Açıklama | J2: Pt | K2: Sa | L2: Çr | M2: Pr | N2: Cm | O2: Ct | P2: Pz | Q2: TOPLAM | R2: Salı | S2: Çarşamba | T2: Perşembe | U2: Cuma | V2: Cumartesi | W2: Pazar | X2: Pazartesi | Y2: Salı | Z2: Çarşamba | AA2: Perşembe | AB2: Cuma | AC2: Cumartesi | AD2: Pazar | AE2: Pazartesi | AF2: Salı | AG2: Çarşamba | AH2: Perşembe | AI2: Cuma | AJ2: Cumartesi | AK2: Pazar | AL2: Pazartesi | AM2: Salı | AN2: Çarşamba | AO2: Perşembe | AP2: Cuma | AQ2: Cumartesi | AR2: Pazar | AS2: Pazartesi | AT2: Salı | AU2: Çarşamba | AV2: Perşembe | AW2: TOPLAM
A3: 1 | B3: TRUE | D3: M.MAHSUM GÜLTEKİN | E3: Okul Müdürü | F3: 32606090826 | G3: + | H3: 101 | I3: Ders Nit. Yönetim Görevi | J3: 6 | K3: 6 | L3: 6 | M3: 6 | N3: 6 | Q3: =SUM(J3:P3) -> 30 | R3: 6 | S3: 6 | T3: 6 | U3: 6 | X3: 6 | Y3: 6 | Z3: 6 | AA3: 6 | AB3: 6 | AE3: 6 | AF3: 6 | AG3: 6 | AH3: 6 | AI3: 6 | AL3: 6 | AM3: 6 | AN3: 6 | AO3: 6 | AP3: 6 | AS3: 6 | AT3: 6 | AU3: 6 | AV3: 6 | AW3: =SUM(R3:AV3) -> 138
F4: 32606090826 | G4: - | H4: 117 | I4: Takviye kursu(Haftasonu/Gece) | Q4: =SUM(J4:P4) -> 0 | AW4: 0
A5: 2 | B5: TRUE | D5: MEHMET MİNTAŞ | E5: Müdür Yardımcısı | F5: 13634704480 | G5: + | H5: 101 | I5: Ders Nit. Yönetim Görevi | J5: 5 | K5: 5 | L5: 5 | M5: 5 | N5: 6 | Q5: 26 | R5: 5 | S5: 5 | T5: 5 | U5: 6 | X5: 5 | Y5: 5 | Z5: 5 | AA5: 5 | AB5: 6 | AE5: 5 | AF5: 5 | AG5: 5 | AH5: 5 | AI5: 6 | AL5: 5 | AM5: 5 | AN5: 5 | AO5: 5 | AP5: 6 | AS5: 5 | AT5: 5 | AU5: 5 | AV5: 5 | AW5: 119
F6: 13634704480 | G6: - | H6: 117 | I6: Takviye kursu(Haftasonu/Gece) | P6: 2 | Q6: =SUM(J6:P6) -> 2 | W6: 2 | AD6: 2 | AK6: 2 | AR6: 2 | AW6: 8
F7: 13634704480 | G7: - | H7: 119 | I7: Nöbet Görevi | M7: 3 | Q7: =SUM(J7:P7) -> 3 | T7: 3 | AA7: 3 | AH7: 3 | AW7: 9
A8: 3 | B8: TRUE | D8: AYNUR BAŞARAN | E8: Öğretmen | F8: 18575127534 | G8: + | H8: 101 | I8: Gündüz | M8: 2 | N8: 8 | Q8: 10 | T8: 2 | U8: 8 | AA8: 2 | AB8: 8 | AH8: 2 | AI8: 8 | AW8: 30
F9: 18575127534 | G9: - | H9: 110 | I9: Ekders Yer.Geç.Gör. - Gündüz | M9: 2 | N9: 2 | Q9: 4 | T9: 2 | U9: 2 | AA9: 2 | AB9: 2 | AH9: 2 | AI9: 2 | AW9: 12
F10: 18575127534 | G10: - | H10: 116 | I10: Takviye kursu(Gündüz) | L10: 1 | M10: 1 | Q10: =SUM(J10:P10) -> 2 | S10: 1 | T10: 1 | Z10: 1 | AA10: 1 | AG10: 1 | AH10: 1 | AW10: 6
F11: 18575127534 | G11: - | H11: 119 | I11: Nöbet Görevi | M11: 3 | Q11: =SUM(J11:P11) -> 3 | T11: 3 | AA11: 3 | AH11: 3 | AW11: 9
A12: 4 | B12: TRUE | D12: CANER ÇELİK | E12: Öğretmen | F12: 36899178056 | G12: + | H12: 101 | I12: Gündüz | N12: 7 | Q12: 7 | U12: 7 | AB12: 7 | AI12: 7 | AW12: 21
F13: 36899178056 | G13: - | H13: 110 | I13: Ekders Yer.Geç.Gör. - Gündüz | L13: 1 | N13: 1 | Q13: 2 | S13: 1 | U13: 1 | Z13: 1 | AB13: 1 | AG13: 1 | AI13: 1 | AW13: 6
F14: 36899178056 | G14: - | H14: 116 | I14: Takviye kursu(Gündüz) | J14: 1 | K14: 1 | Q14: =SUM(J14:P14) -> 2 | R14: 1 | X14: 1 | Y14: 1 | AE14: 1 | AF14: 1 | AW14: 5
F15: 36899178056 | G15: - | H15: 119 | I15: Nöbet Görevi | K15: 3 | Q15: 3 | R15: 3 | Y15: 3 | AF15: 3 | AW15: 9
A16: 5 | B16: TRUE | D16: ESİN GÜMÜŞ | E16: Öğretmen | F16: 20566694390 | G16: + | H16: 101 | I16: Gündüz | N16: 3 | Q16: 3 | U16: 3 | AI16: 3 | AW16: 6
F17: 20566694390 | G17: - | H17: 110 | I17: Ekders Yer.Geç.Gör. - Gündüz | L17: 2 | M17: 2 | Q17: 4 | S17: 2 | T17: 2 | Z17: 1 | AA17: 2 | AG17: 2 | AH17: 2 | AW17: 11
F18: 20566694390 | G18: - | H18: 116 | I18: Takviye kursu(Gündüz) | K18: 1 | L18: 1 | Q18: =SUM(J18:P18) -> 2 | R18: 1 | S18: 1 | Y18: 1 | Z18: 1 | AF18: 1 | AG18: 1 | AW18: 6
F19: 20566694390 | G19: - | H19: 117 | I19: Takviye kursu(Haftasonu/Gece) | P19: 2 | Q19: =SUM(J19:P19) -> 2 | W19: 2 | AD19: 2 | AK19: 2 | AW19: 6
F20: 20566694390 | G20: - | H20: 119 | I20: Nöbet Görevi | K20: 3 | Q20: 3 | R20: 3 | Y20: 3 | AF20: 3 | AW20: 9
A21: 6 | B21: TRUE | D21: FADİME AKÇAKAYA POYRAZ | E21: Öğretmen (Y.L.) | F21: 10862570672 | G21: + | H21: 101 | I21: Gündüz | M21: 1 | N21: 5 | Q21: 6 | T21: 1 | U21: 5 | AA21: 1 | AB21: 5 | AH21: 1 | AI21: 5 | AW21: 18
F22: 10862570672 | G22: - | H22: 110 | I22: Ekders Yer.Geç.Gör. - Gündüz | M22: 1 | N22: 2 | Q22: 3 | T22: 1 | U22: 2 | AA22: 1 | AB22: 2 | AH22: 1 | AI22: 2 | AW22: 9
F23: 10862570672 | G23: - | H23: 119 | I23: Nöbet Görevi | N23: 3 | Q23: 3 | U23: 3 | AB23: 3 | AI23: 3 | AW23: 9
A24: 7 | B24: TRUE | D24: MEDİNE ARI KAPLAN | E24: Öğretmen | F24: 18745429628 | G24: + | H24: 101 | I24: Gündüz | M24: 5 | N24: 4 | Q24: 9 | U24: 4 | AA24: 5 | AB24: 4 | AH24: 5 | AI24: 4 | AW24: 22
F25: 18745429628 | G25: - | H25: 110 | I25: Ekders Yer.Geç.Gör. - Gündüz | L25: 2 | M25: 1 | N25: 1 | Q25: 4 | S25: 2 | U25: 1 | Z25: 2 | AA25: 1 | AB25: 1 | AG25: 2 | AH25: 1 | AI25: 1 | AW25: 11
F26: 18745429628 | G26: - | H26: 116 | I26: Takviye kursu(Gündüz) | K26: 1 | Q26: =SUM(J26:P26) -> 1 | R26: 1 | Y26: 1 | AF26: 1 | AW26: 3
F27: 18745429628 | G27: - | H27: 119 | I27: Nöbet Görevi | L27: 3 | Q27: 3 | S27: 3 | Z27: 3 | AG27: 3 | AW27: 9
A28: 8 | B28: TRUE | D28: MEHMET PEKEL | E28: Öğretmen | F28: 17744647606 | G28: + | H28: 101 | I28: Gündüz | N28: 5 | Q28: 5 | U28: 5 | AB28: 5 | AI28: 5 | AW28: 15
F29: 17744647606 | G29: - | H29: 110 | I29: Ekders Yer.Geç.Gör. - Gündüz | L29: 3 | N29: 2 | Q29: 5 | S29: 3 | U29: 2 | Z29: 3 | AB29: 2 | AG29: 3 | AI29: 2 | AW29: 15
F30: 17744647606 | G30: - | H30: 117 | I30: Takviye kursu(Haftasonu/Gece) | P30: 6 | Q30: =SUM(J30:P30) -> 6 | W30: 6 | AD30: 6 | AK30: 6 | AW30: 18
F31: 17744647606 | G31: - | H31: 119 | I31: Nöbet Görevi | J31: 3 | Q31: 3 | X31: 3 | AE31: 3 | AW31: 6
A32: 9 | B32: TRUE | D32: MUHAMMET KAŞIKÇI | E32: Öğretmen (Y.L.) | F32: 16732554520 | G32: + | H32: 101 | I32: Gündüz | L32: 5 | Q32: 5 | S32: 5 | Z32: 5 | AG32: 5 | AW32: 15
F33: 16732554520 | G33: - | H33: 103 | I33: %25 Fazla Gündüz | Q33: =SUM(J33:P33) -> 0 | AW33: 0
F34: 16732554520 | G34: - | H34: 107 | I34: Sınav Görevi | Q34: =SUM(J34:P34) -> 0 | AW34: 0
F35: 16732554520 | G35: - | H35: 110 | I35: Ekders Yer.Geç.Gör. - Gündüz | K35: 2 | L35: 2 | Q35: 4 | R35: 2 | S35: 2 | Y35: 2 | Z35: 2 | AF35: 2 | AG35: 2 | AW35: =SUM(R35:AV35) -> 12
F36: 16732554520 | G36: - | H36: 116 | I36: Takviye kursu(Gündüz) | J36: 1 | K36: 1 | M36: 1 | Q36: =SUM(J36:P36) -> 3 | R36: 1 | T36: 1 | X36: 1 | Y36: 1 | AA36: 1 | AE36: 1 | AF36: 1 | AH36: 1 | AW36: 8
F37: 16732554520 | G37: - | H37: 117 | I37: Takviye kursu(Haftasonu/Gece) | P37: 4 | Q37: =SUM(J37:P37) -> 4 | W37: 4 | AD37: 4 | AK37: 4 | AW37: 12
F38: 16732554520 | G38: - | H38: 119 | I38: Nöbet Görevi | K38: 3 | Q38: 3 | R38: 3 | Y38: 3 | AF38: 3 | AW38: 9
A39: 10 | B39: TRUE | D39: MUZAFFER YENİLMEZ | E39: Öğretmen | F39: 37655023382 | G39: + | H39: 101 | I39: Gündüz | Q39: 0 | AW39: 0
F40: 37655023382 | G40: - | H40: 110 | I40: Ekders Yer.Geç.Gör. - Gündüz | M40: 2 | Q40: 2 | T40: 2 | AA40: 2 | AH40: 2 | AW40: 6
F41: 37655023382 | G41: - | H41: 119 | I41: Nöbet Görevi | Q41: 0 | AW41: 0
A42: 11 | B42: TRUE | D42: RÜMEYSA KARAKOÇ | E42: Öğretmen | F42: 23021190772 | G42: + | H42: 101 | I42: Gündüz | M42: 7 | N42: 8 | Q42: 15 | T42: 7 | U42: 8 | AH42: 7 | AI42: 8 | AW42: 30
F43: 23021190772 | G43: - | H43: 107 | I43: Sınav Görevi | Q43: =SUM(J43:P43) -> 0 | AW43: 0
F44: 23021190772 | G44: - | H44: 110 | I44: Ekders Yer.Geç.Gör. - Gündüz | L44: 1 | M44: 3 | N44: 1 | Q44: 5 | S44: 1 | T44: 3 | U44: 1 | Z44: 1 | AA44: 1 | AB44: 1 | AG44: 1 | AH44: 3 | AI44: 1 | AW44: 13
F45: 23021190772 | G45: - | H45: 119 | I45: Nöbet Görevi | N45: 3 | Q45: 3 | U45: 3 | AI45: 3 | AW45: 6
A46: 12 | B46: TRUE | D46: SEVİL YILMAZOĞLU | E46: Öğretmen | F46: 31426049694 | G46: + | H46: 101 | I46: Gündüz | Q46: 0 | AW46: 0
F47: 31426049694 | G47: - | H47: 110 | I47: Ekders Yer.Geç.Gör. - Gündüz | L47: 2 | Q47: 2 | S47: 2 | Z47: 2 | AG47: 2 | AW47: 6
F48: 31426049694 | G48: - | H48: 119 | I48: Nöbet Görevi | L48: 3 | Q48: 3 | S48: 3 | Z48: 3 | AG48: 3 | AW48: 9
A49: 13 | B49: TRUE | D49: ŞEYMA SAĞIRLI | E49: Öğretmen | F49: 14030073828 | G49: + | H49: 101 | I49: Gündüz | M49: 7 | N49: 8 | Q49: 15 | T49: 7 | U49: 8 | AA49: 7 | AB49: 8 | AH49: 7 | AI49: 8 | AW49: 45
F50: 14030073828 | G50: - | H50: 107 | I50: Sınav Görevi | Q50: =SUM(J50:P50) -> 0 | AW50: 0
F51: 14030073828 | G51: - | H51: 110 | I51: Ekders Yer.Geç.Gör. - Gündüz | L51: 2 | M51: 3 | Q51: 5 | S51: 2 | T51: 3 | Z51: 2 | AA51: 3 | AG51: 2 | AH51: 3 | AW51: 15
F52: 14030073828 | G52: - | H52: 116 | I52: Takviye kursu(Gündüz) | J52: 1 | M52: 1 | Q52: =SUM(J52:P52) -> 2 | T52: 1 | X52: 1 | AA52: 1 | AE52: 1 | AH52: 1 | AW52: 5
F53: 14030073828 | G53: - | H53: 119 | I53: Nöbet Görevi | N53: 3 | Q53: 3 | U53: 3 | AB53: 3 | AI53: 3 | AW53: 9

Sheet Puantaj
A1: İlçe / İL | C1: Karaburun/İZMİR | F1: EK DERS ÜCRETLERİ ÇİZELGESİ (KADROLU ÖĞRETMENLER) | AG1: AY | AK1: Ocak
A2: Kurumu | C2: KARABURUN ANADOLU İMAM HATİP LİSESİ | AG2: YIL | AK2: 2019
A3: Ö Ğ R E T M E N İ N | F3: GÜNLÜK OKUTULAN DERS SAATLERİ | AK3: Ders Saati
A4: S.N. | B4: T.C. KİMLİK NO | C4: ADI SOYADI | D4: GÖREVİ | E4: ÜCRET TÜRÜ | F4: 2019-01-01 | G4: 2019-01-02 | H4: 2019-01-03 | I4: 2019-01-04 | J4: 2019-01-05 | K4: 2019-01-06 | L4: 2019-01-07 | M4: 2019-01-08 | N4: 2019-01-09 | O4: 2019-01-10 | P4: 2019-01-11 | Q4: 2019-01-12 | R4: 2019-01-13 | S4: 2019-01-14 | T4: 2019-01-15 | U4: 2019-01-16 | V4: 2019-01-17 | W4: 2019-01-18 | X4: 2019-01-19 | Y4: 2019-01-20 | Z4: 2019-01-21 | AA4: 2019-01-22 | AB4: 2019-01-23 | AC4: 2019-01-24 | AD4: 2019-01-25 | AE4: 2019-01-26 | AF4: 2019-01-27 | AG4: 2019-01-28 | AH4: 2019-01-29 | AI4: 2019-01-30 | AJ4: 2019-01-31 | AK4: Aylık Ok. | AL4: Toplam
A5: 1 | B5: 32606090826 | C5: M.MAHSUM GÜLTEKİN | D5: Okul Müdürü | E5: Ders Nit. Yönetim Görevi | F5: 6 | G5: 6 | H5: 6 | I5: 6 | L5: 6 | M5: 6 | N5: 6 | O5: 6 | P5: 6 | S5: 6 | T5: 6 | U5: 6 | V5: 6 | W5: 6 | Z5: 6 | AA5: 6 | AB5: 6 | AC5: 6 | AD5: 6 | AG5: 6 | AH5: 6 | AI5: 6 | AJ5: 6 | AK5: 138 | AL5: 138
E6: Takviye kursu(Haftasonu/Gece) | AK6: 0
A7: 2 | B7: 13634704480 | C7: MEHMET MİNTAŞ | D7: Müdür Yardımcısı | E7: Ders Nit. Yönetim Görevi | F7: 5 | G7: 5 | H7: 5 | I7: 6 | L7: 5 | M7: 5 | N7: 5 | O7: 5 | P7: 6 | S7: 5 | T7: 5 | U7: 5 | V7: 5 | W7: 6 | Z7: 5 | AA7: 5 | AB7: 5 | AC7: 5 | AD7: 6 | AG7: 5 | AH7: 5 | AI7: 5 | AJ7: 5 | AK7: 119 | AL7: 136
E8: Takviye kursu(Haftasonu/Gece) | K8: 2 | R8: 2 | Y8: 2 | AF8: 2 | AK8: 8
E9: Nöbet Görevi | H9: 3 | O9: 3 | V9: 3 | AK9: 9
A10: 3 | B10: 18575127534 | C10: AYNUR BAŞARAN | D10: Öğretmen | E10: Gündüz | H10: 2 | I10: 8 | O10: 2 | P10: 8 | V10: 2 | W10: 8 | AK10: 30 | AL10: 57
E11: Ekders Yer.Geç.Gör. - Gündüz | H11: 2 | I11: 2 | O11: 2 | P11: 2 | V11: 2 | W11: 2 | AK11: 12
E12: Takviye kursu(Gündüz) | G12: 1 | H12: 1 | N12: 1 | O12: 1 | U12: 1 | V12: 1 | AK12: 6
E13: Nöbet Görevi | H13: 3 | O13: 3 | V13: 3 | AK13: 9
A14: 4 | B14: 36899178056 | C14: CANER ÇELİK | D14: Öğretmen | E14: Gündüz | I14: 7 | P14: 7 | W14: 7 | AK14: 21 | AL14: 41
E15: Ekders Yer.Geç.Gör. - Gündüz | G15: 1 | I15: 1 | N15: 1 | P15: 1 | U15: 1 | W15: 1 | AK15: 6
E16: Takviye kursu(Gündüz) | F16: 1 | L16: 1 | M16: 1 | S16: 1 | T16: 1 | AK16: 5
E17: Nöbet Görevi | F17: 3 | M17: 3 | T17: 3 | AK17: 9
A18: 5 | B18: 20566694390 | C18: ESİN GÜMÜŞ | D18: Öğretmen | E18: Gündüz | I18: 3 | W18: 3 | AK18: 6 | AL18: 38
E19: Ekders Yer.Geç.Gör. - Gündüz | G19: 2 | H19: 2 | N19: 1 | O19: 2 | U19: 2 | V19: 2 | AK19: 11
E20: Takviye kursu(Gündüz) | F20: 1 | G20: 1 | M20: 1 | N20: 1 | T20: 1 | U20: 1 | AK20: 6
E21: Takviye kursu(Haftasonu/Gece) | K21: 2 | R21: 2 | Y21: 2 | AK21: 6
E22: Nöbet Görevi | F22: 3 | M22: 3 | T22: 3 | AK22: 9
A23: 6 | B23: 10862570672 | C23: FADİME AKÇAKAYA POYRAZ | D23: Öğretmen (Y.L.) | E23: Gündüz | H23: 1 | I23: 5 | O23: 1 | P23: 5 | V23: 1 | W23: 5 | AK23: 18 | AL23: 36
E24: Ekders Yer.Geç.Gör. - Gündüz | H24: 1 | I24: 2 | O24: 1 | P24: 2 | V24: 1 | W24: 2 | AK24: 9
E25: Nöbet Görevi | I25: 3 | P25: 3 | W25: 3 | AK25: 9
A26: 7 | B26: 18745429628 | C26: MEDİNE ARI KAPLAN | D26: Öğretmen | E26: Gündüz | I26: 4 | O26: 5 | P26: 4 | V26: 5 | W26: 4 | AK26: 22 | AL26: 45
E27: Ekders Yer.Geç.Gör. - Gündüz | G27: 2 | I27: 1 | N27: 2 | O27: 1 | P27: 1 | U27: 2 | V27: 1 | W27: 1 | AK27: 11
E28: Takviye kursu(Gündüz) | F28: 1 | M28: 1 | T28: 1 | AK28: 3
E29: Nöbet Görevi | G29: 3 | N29: 3 | U29: 3 | AK29: 9
A30: 8 | B30: 17744647606 | C30: MEHMET PEKEL | D30: Öğretmen | E30: Gündüz | I30: 5 | P30: 5 | W30: 5 | AK30: 15 | AL30: 54
E31: Ekders Yer.Geç.Gör. - Gündüz | G31: 3 | I31: 2 | N31: 3 | P31: 2 | U31: 3 | W31: 2 | AK31: 15
E32: Takviye kursu(Haftasonu/Gece) | K32: 6 | R32: 6 | Y32: 6 | AK32: 18
E33: Nöbet Görevi | L33: 3 | S33: 3 | AK33: 6
A34: 9 | B34: 16732554520 | C34: MUHAMMET KAŞIKÇI | D34: Öğretmen (Y.L.) | E34: Gündüz | G34: 5 | N34: 5 | U34: 5 | AK34: 15 | AL34: 56
E35: %25 Fazla Gündüz | AK35: 0
E36: Sınav Görevi | AK36: 0
E37: Ekders Yer.Geç.Gör. - Gündüz | F37: 2 | G37: 2 | M37: 2 | N37: 2 | T37: 2 | U37: 2 | AK37: 12
E38: Takviye kursu(Gündüz) | F38: 1 | H38: 1 | L38: 1 | M38: 1 | O38: 1 | S38: 1 | T38: 1 | V38: 1 | AK38: 8
E39: Takviye kursu(Haftasonu/Gece) | K39: 4 | R39: 4 | Y39: 4 | AK39: 12
E40: Nöbet Görevi | F40: 3 | M40: 3 | T40: 3 | AK40: 9
A41: 10 | B41: 37655023382 | C41: MUZAFFER YENİLMEZ | D41: Öğretmen | E41: Gündüz | AK41: 0 | AL41: 6
E42: Ekders Yer.Geç.Gör. - Gündüz | H42: 2 | O42: 2 | V42: 2 | AK42: 6
E43: Nöbet Görevi | AK43: 0
A44: 11 | B44: 23021190772 | C44: RÜMEYSA KARAKOÇ | D44: Öğretmen | E44: Gündüz | H44: 7 | I44: 8 | V44: 7 | W44: 8 | AK44: 30 | AL44: 49
E45: Sınav Görevi | AK45: 0
E46: Ekders Yer.Geç.Gör. - Gündüz | G46: 1 | H46: 3 | I46: 1 | N46: 1 | O46: 1 | P46: 1 | U46: 1 | V46: 3 | W46: 1 | AK46: 13
E47: Nöbet Görevi | I47: 3 | W47: 3 | AK47: 6
A48: 12 | B48: 31426049694 | C48: SEVİL YILMAZOĞLU | D48: Öğretmen | E48: Gündüz | AK48: 0 | AL48: 15
E49: Ekders Yer.Geç.Gör. - Gündüz | G49: 2 | N49: 2 | U49: 2 | AK49: 6
E50: Nöbet Görevi | G50: 3 | N50: 3 | U50: 3 | AK50: 9
A51: 13 | B51: 14030073828 | C51: ŞEYMA SAĞIRLI | D51: Öğretmen | E51: Gündüz | H51: 7 | I51: 8 | O51: 7 | P51: 8 | V51: 7 | W51: 8 | AK51: 45 | AL51: 74
E52: Sınav Görevi | AK52: 0
E53: Ekders Yer.Geç.Gör. - Gündüz | G53: 2 | H53: 3 | N53: 2 | O53: 3 | U53: 2 | V53: 3 | AK53: 15
E54: Takviye kursu(Gündüz) | H54: 1 | L54: 1 | O54: 1 | S54: 1 | V54: 1 | AK54: 5
E55: Nöbet Görevi | I55: 3 | P55: 3 | W55: 3 | AK55: 9
A56: ="Yukarıda belirtilen görevlilerce "&AK2&" yılının "&AK1&" ayında toplam "&AL56&"("&YAZ(AL56)&") saat ekders okutulmuştur." -> Yukarıda belirtilen görevlilerce 2019 yılının Ocak ayında toplam 745(YediyüzKırkBeş) saat ekders okutulmuştur. | AF56: TOPLAM | AK56: =SUM(AK5:AK55) -> 745 | AL56: 745
C58: DÜZENLEYEN | AB58: UYGUNDUR
C59: 2019-02-21 | AB59: 2019-02-21
C61: Mehmet MİNTAŞ | AB61: M.Mahsum GÜLTEKİN
C62: Müdür Yardımcısı | AB62: Okul Müdürü

Sheet Kodlar
A1: S.N. | B1: Veri Tip Kodu | C1: Veri Tipi
A2: 1 | B2: 101 | C2: Gündüz
A3: 2 | B3: 102 | C3: Gece
A4: 3 | B4: 103 | C4: %25 Fazla Gündüz
A5: 4 | B5: 104 | C5: %25 Fazla Gece
A6: 5 | B6: 106 | C6: Belleticilik
A7: 6 | B7: 107 | C7: Sınav Görevi
A8: 7 | B8: 108 | C8: Egzersiz
A9: 8 | B9: 109 | C9: Hizmetiçi
A10: 9 | B10: 110 | C10: Ekders Yer.Geç.Gör. - Gündüz
A11: 10 | B11: 111 | C11: Ekders Yer.Geç.Gör. - Gece
A12: 11 | B12: 112 | C12: Ekders Yer.Geç.Gör. - %25 Gündüz
A13: 12 | B13: 113 | C13: Ekders Yer.Geç.Gör. - %25 Gece
A14: 13 | B14: 114 | C14: Atış Eğitimi
A15: 14 | B15: 115 | C15: Cezaevleri Eğitim Merkezi - 160*Saat
A16: 15 | B16: 116 | C16: Takviye kursu(Gündüz)
A17: 16 | B17: 117 | C17: Takviye kursu(Haftasonu/Gece)
A18: 17 | B18: 118 | C18: Belleticilik %25 Fazla
A19: 18 | B19: 119 | C19: Nöbet Görevi
C71: www.egitimhane.com

Sheet Ayar (hidden)
A1: 2019-01-01
A2: 2019-01-31
A3: Mehmet MİNTAŞ
A4: Müdür Yardımcısı
A5: M.Mahsum GÜLTEKİN
A6: Okul Müdürü
A7: KARABURUN ANADOLU İMAM HATİP LİSESİ
A8: Karaburun/İZMİR
A9: 0
A10: 0
A11: 1 | B11: 100 | C11: Brüt Ders Saatleri (Reh./Kulüp Hariç)
A12: FALSE

Sheet Arsiv
A1: Tarih | B1: S.N. | C1: Aktif | D1: Saymanlık Numarası | E1: Adı ve Soyadı | F1: Görevi | G1: TCKN | H1: ArtıEksi | I1: Veri Tip | J1: Veri Açıklama | K1: Pt | L1: Sa | M1: Çr | N1: Pr | O1: Cm | P1: Ct | Q1: Pz | R1: TOPLAM
B2: 1 | E2: AYNUR | F2: Öğretmen | G2: 18575127534
B3: 2 | E3: CANER | F3: Öğretmen | G3: 36899178056
B4: 3 | E4: ESİN | F4: Öğretmen | G4: 20566694390
B5: 4 | E5: FADİME | F5: Öğretmen | G5: 10862570672
B6: 5 | E6: MEDİNE | F6: Öğretmen | G6: 18745429628
B7: 6 | E7: MEHMET | F7: Müdür Yardımcısı | G7: 13634704480
B8: 7 | E8: MEHMET | F8: Öğretmen | G8: 17744647606
B9: 8 | E9: MEHMET MAHSUM | F9: Müdür | G9: 32606090826
B10: 9 | E10: MUHAMMET | F10: Öğretmen | G10: 16732554520
B11: 10 | E11: MUZAFFER | F11: Öğretmen | G11: 37655023382
B12: 11 | E12: MÜGE | F12: Öğretmen | G12: 15385591456
B13: 12 | E13: RÜMEYSA | F13: Öğretmen | G13: 23021190772
B14: 13 | E14: SEVİL | F14: Öğretmen | G14: 31426049694
B15: 14 | E15: ŞEYMA | F15: Öğretmen | G15: 14030073828
B16: 15
B17: 16
B18: 17
